bitfinex-derivatives/quotes_SOLF0:USTF0_20250320
["timestamp","ask_amount","ask_price","bid_price","bid_amount"]
[1742449541589,0.04878516,133.43,133.41,7.54921909]
[1742449543586,37.13511365,133.42,133.41,0.05381909]
[1742449543791,37.13511365,133.42,133.35,37.13511365]
[1742449544090,7.4967,133.39,133.35,18.39361365]
[1742449544287,10.89511365,133.4,133.35,10.89511365]
[1742449544486,37.13511365,133.39,133.34,37.13511365]
[1742449544685,18.39251365,133.38,133.34,7.4991]
[1742449544883,0.05609168,133.38,133.36,10.89511365]
[1742449545086,0.05609168,133.38,133.36,37.13511365]
[1742449545287,18.38971365,133.43,133.37,10.89511365]
[1742449545487,18.38971365,133.43,133.39,10.89511365]
[1742449545689,10.44247843,133.42,133.39,37.13511365]
[1742449546284,10.44247843,133.42,133.39,44.63151365]
[1742449546493,10.49476163,133.42,133.39,33.78937605]
[1742449546691,17.98976163,133.42,133.39,33.78937605]
[1742449546897,17.98976163,133.42,133.39,26.29297605]
[1742449547598,10.49476163,133.42,133.39,33.78957605]
[1742449548191,0.0522832,133.42,133.39,33.78957605]
[1742449549497,0.0522832,133.42,133.4,7.496]
[1742449551701,0.0522832,133.42,133.41,7.4955]
[1742449558796,0.0522832,133.42,133.4,7.4958]
[1742449561102,10.89511365,133.41,133.39,26.29297605]
[1742449561506,10.89511365,133.41,133.33,260.28391365]
[1742449561703,18.39261365,133.38,133.34,33.7392]
[1742449561896,18.39261365,133.38,133.34,26.24]
[1742449562103,10.89511365,133.37,133.34,26.24]
[1742449562702,10.95107712,133.37,133.35,7.4985]
[1742449563397,10.89511365,133.36,133.34,7.55372693]
[1742449564106,10.89511365,133.35,133.34,0.05442693]
[1742449565907,10.89511365,133.35,133.29,26.24]
[1742449566104,10.89511365,133.31,133.28,6.0052]
[1742449566302,10.89511365,133.29,133.26,26.24]
[1742449566505,10.89511365,133.29,133.26,7.5038]
[1742449566704,10.89511365,133.29,133.25,30.46]
[1742449566909,10.89511365,133.29,133.25,41.35511365]
[1742449567207,10.89511365,133.29,133.28,7.5028]
[1742449567409,10.89511365,133.3,133.28,7.5028]
[1742449567611,10.94936854,133.3,133.28,7.5028]
[1742449570805,0.05425489,133.3,133.28,7.5028]
[1742449571105,0.05425489,133.3,133.29,7.5022]
[1742449571900,247.42,133.34,133.33,7.5]
[1742449575916,26.29097654,133.35,133.34,7.4994]
[1742449581518,0.05097654,133.35,133.34,7.4994]
[1742449584918,0.05097654,133.35,133.34,18.39451365]
[1742449585120,247.5,133.39,133.38,7.4972]
[1742449585324,26.26,133.4,133.36,10.89511365]
[1742449586221,0.05185194,133.39,133.37,0.05716588]
[1742449586721,0.05185194,133.39,133.38,7.4972]
[1742449596027,0.05185194,133.39,133.37,7.55466588]
[1742449597728,10.94696559,133.39,133.37,0.05716588]
[1742449598327,10.89511365,133.38,133.37,0.05716588]
[1742449598722,18.39231365,133.38,133.37,0.05716588]
[1742449599425,10.89511365,133.38,133.37,0.05716588]
[1742449606130,37.18696559,133.39,133.37,0.05716588]
[1742449607526,37.18696559,133.39,133.38,7.4972]
[1742449607825,10.94696559,133.39,133.38,7.4972]
[1742449609933,10.94696559,133.39,133.37,7.55466588]
[1742449610428,10.94696559,133.39,133.37,0.05716588]
[1742449611021,7.4972,133.38,133.37,0.05716588]
[1742449611228,37.13511365,133.38,133.3,16.83331365]
[1742449611432,10.89511365,133.35,133.31,26.24]
[1742449611737,10.89511365,133.37,133.32,10.89511365]
[1742449612328,0.05518054,133.36,133.33,0.05289426]
[1742449612932,0.05518054,133.36,133.35,7.4989]
[1742449620334,0.05518054,133.36,133.33,18.44740791]
[1742449620527,10.95029419,133.36,133.33,0.05289426]
[1742449620727,7.4992,133.35,133.33,0.05289426]
[1742449620930,18.39431365,133.35,133.33,0.05289426]
[1742449622734,7.4994,133.34,133.33,0.05289426]
[1742449623331,18.39451365,133.34,133.33,0.05289426]
[1742449623540,37.13511365,133.34,133.29,26.24]
[1742449623741,10.89511365,133.32,133.29,26.24]
[1742449623937,10.89511365,133.32,133.28,10.89511365]
[1742449624137,10.89511365,133.33,133.28,10.89511365]
[1742449624337,10.89511365,133.32,133.28,7.5025]
[1742449624538,10.89511365,133.32,133.27,37.13511365]
[1742449624737,0.04992672,133.31,133.29,0.05740843]
[1742449625141,10.94504037,133.31,133.29,0.05740843]
[1742449625541,18.44654037,133.31,133.29,0.05740843]
[1742449626335,5.12724337,133.3,133.29,0.05740843]
[1742449629231,16.02235702,133.3,133.29,0.05740843]
[1742449629437,23.52405702,133.3,133.29,0.05740843]
[1742449632045,23.51653763,133.3,133.29,0.05740843]
[1742449633942,5.11972398,133.3,133.29,0.05740843]
[1742449636248,5.11972398,133.3,133.29,7.55960843]
[1742449641250,5.11972398,133.3,133.29,18.45472208]
[1742449641552,5.11972398,133.3,133.29,7.55960843]
[1742449641754,5.11554474,133.3,133.29,7.55960843]
[1742449642251,5.11554474,133.3,133.29,0.05740843]
[1742449642656,23.51235839,133.3,133.29,0.05740843]
[1742449642850,16.01065839,133.3,133.26,7.5038]
[1742449643153,42.27065839,133.29,133.24,10.89511365]
[1742449643353,16.01065839,133.28,133.24,7.5046]
[1742449643652,16.01065839,133.27,133.24,7.5046]
[1742449643857,5.11722179,133.26,133.24,7.5046]
[1742449644053,18.44796547,133.27,133.24,7.5613258]
[1742449644248,5.11725383,133.26,133.24,0.0567258]
[1742449644455,5.11619403,133.25,133.24,0.0567258]
[1742449644854,5.11619403,133.25,133.24,7.5618258]
[1742449645758,5.11427271,133.25,133.24,7.5618258]
[1742449648069,5.11427271,133.25,133.24,0.0567258]
[1742449649471,5.11427271,133.25,133.24,7.5618258]
[1742449651165,5.11427271,133.25,133.24,0.0567258]
[1742449651369,16.00938636,133.25,133.24,0.0567258]
[1742449652070,10.89511365,133.25,133.24,0.0567258]
[1742449652268,16.00299747,133.25,133.23,7.5055]
[1742449652469,5.10788382,133.24,133.23,7.5055]
[1742449653372,5.10788382,133.24,133.22,7.506]
[1742449653572,5.10788382,133.23,133.22,7.56018177]
[1742449653869,5.10583256,133.23,133.22,7.56018177]
[1742449655772,10.94693218,133.25,133.24,7.5051]
[1742449655969,5.15728651,133.25,133.24,7.5051]
[1742449656468,5.15728651,133.25,133.22,0.05418177]
[1742449656674,5.10546798,133.24,133.22,0.05418177]
[1742449656875,5.10546798,133.23,133.22,0.05418177]
[1742449657773,5.10360441,133.23,133.22,7.56038177]
[1742449659583,5.10280923,133.23,133.22,7.56038177]
[1742449660979,0.05181853,133.25,133.24,7.5051]
[1742449661172,0.05181853,133.25,133.24,18.40021365]
[1742449661370,0.05181853,133.25,133.24,7.5051]
[1742449661570,0.05181853,133.25,133.24,18.40021365]
[1742449661771,0.05181853,133.25,133.24,44.66021365]
[1742449666980,26.26,133.3,133.28,7.5025]
[1742449667175,4.0554,133.31,133.26,10.89511365]
[1742449667380,26.26,133.31,133.27,10.89511365]
[1742449667777,258.45511365,133.32,133.27,10.89511365]
[1742449667979,273.82,133.32,133.28,10.89511365]
[1742449668283,0.05318284,133.31,133.29,10.89511365]
[1742449668472,0.05318284,133.31,133.3,7.5017]
[1742449668677,0.05318284,133.31,133.3,18.39681365]
[1742449668875,41.62828302,133.34,133.3,37.19511365]
[1742449669081,41.62828302,133.34,133.33,7.5]
[1742449669481,77.45428302,133.36,133.33,7.5]
[1742449669676,51.15428302,133.36,133.33,7.5]
[1742449669875,77.45428302,133.36,133.33,7.5]
[1742449670077,77.50286092,133.36,133.33,7.54790882]
[1742449670381,41.67686092,133.36,133.35,18.39401365]
[1742449670582,41.67686092,133.36,133.35,10.89511365]
[1742449670782,41.67686092,133.36,133.34,10.89511365]
[1742449671084,41.67686092,133.36,133.33,37.24302247]
[1742449671282,41.67686092,133.36,133.34,10.89511365]
[1742449671483,41.67686092,133.36,133.34,18.39431365]
[1742449671683,41.67686092,133.36,133.34,10.89511365]
[1742449672487,31.23438249,133.36,133.34,10.89511365]
[1742449672683,0.0485779,133.36,133.34,10.89511365]
[1742449673688,0.0485779,133.36,133.35,10.89511365]
[1742449675581,0.0485779,133.36,133.35,18.39401365]
[1742449676693,18.39071365,133.41,133.36,7.4979]
[1742449676991,44.71071365,133.41,133.37,10.89511365]
[1742449677289,33.8156,133.41,133.37,10.89511365]
[1742449677893,0.04920791,133.4,133.38,0.05116164]
[1742449678593,0.04920791,133.4,133.38,10.94627529]
[1742449680089,7.54540791,133.4,133.38,10.94627529]
[1742449682090,7.4966,133.39,133.38,0.05116164]
[1742449682594,7.54550791,133.4,133.38,0.05116164]
[1742449683697,7.4966,133.39,133.38,0.05116164]
[1742449686500,18.39171365,133.39,133.38,0.05116164]
[1742449686702,7.498,133.37,133.34,41.19291365]
[1742449687196,7.4984,133.36,133.34,14.89291365]
[1742449687509,10.89511365,133.36,133.32,37.19511365]
[1742449687999,7.55352293,133.35,133.33,0.05680256]
[1742449688303,0.05462293,133.35,133.33,7.55680256]
[1742449688497,0.05462293,133.35,133.33,10.95191621]
[1742449688698,0.05462293,133.35,133.34,10.89511365]
[1742449689502,0.05462293,133.35,133.34,18.39451365]
[1742449691104,37.17511365,133.41,133.37,7.4972]
[1742449691404,33.7757,133.41,133.37,10.89511365]
[1742449691902,33.7757,133.41,133.38,7.4972]
[1742449692202,33.82474665,133.41,133.38,7.55058781]
[1742449693305,7.4962,133.4,133.38,0.05338781]
[1742449694301,33.82474665,133.41,133.38,0.05338781]
[1742449694506,7.54474665,133.41,133.38,7.55038781]
[1742449697409,7.4964,133.4,133.38,0.05338781]
[1742449698806,7.54474665,133.41,133.38,7.55048781]
[1742449700107,0.04904665,133.41,133.4,7.4961]
[1742449700508,0.04904665,133.41,133.38,10.94850146]
[1742449700714,0.04904665,133.41,133.39,7.4963]
[1742449701103,0.04904665,133.41,133.38,10.94850146]
[1742449701303,0.04904665,133.41,133.38,0.05338781]
[1742449701610,0.04904665,133.41,133.39,10.89511365]
[1742449702009,0.04904665,133.41,133.39,18.39131365]
[1742449702510,7.54454665,133.41,133.38,7.55028781]
[1742449702708,10.9441603,133.41,133.38,0.05338781]
[1742449703011,7.4964,133.4,133.38,0.05338781]
[1742449705913,7.4966,133.39,133.38,0.05338781]
[1742449706214,18.39171365,133.39,133.38,0.05338781]
[1742449708714,7.4966,133.39,133.38,0.05338781]
[1742449716224,7.4987,133.36,133.33,44.75481365]
[1742449716423,10.89511365,133.38,133.34,7.4994]
[1742449716815,10.89511365,133.4,133.35,10.89511365]
[1742449717021,26.4,133.41,133.37,10.89511365]
[1742449717325,0.05725422,133.39,133.37,10.89511365]
[1742449717523,0.05725422,133.39,133.38,7.4972]
[1742449718725,0.05725422,133.39,133.38,18.39231365]
[1742449719928,10.44247843,133.4,133.39,7.4966]
[1742449720119,10.44247843,133.4,133.39,33.8766]
[1742449722134,0.05663261,133.41,133.4,7.4961]
[1742449722331,0.05663261,133.41,133.4,18.39121365]
[1742449726543,7.4928,133.46,133.43,7.4943]
[1742449726741,7.4928,133.46,133.43,37.23511365]
[1742449726941,7.4936,133.45,133.43,26.34]
[1742449727340,7.4936,133.45,133.42,10.89511365]
[1742449727644,7.5443625,133.45,133.42,10.95258972]
[1742449728537,0.0507625,133.45,133.42,10.95258972]
[1742449729545,0.0507625,133.45,133.43,7.4943]
[1742449732239,0.0507625,133.45,133.44,33.8138]
[1742449732445,0.0507625,133.45,133.44,44.70891365]
[1742449732745,0.0507625,133.45,133.44,37.21511365]
[1742449733341,0.0507625,133.45,133.44,44.70891365]
[1742449733737,0.0507625,133.45,133.44,37.21511365]
[1742449734249,0.0507625,133.45,133.44,44.70891365]
[1742449737242,0.0507625,133.45,133.44,33.8138]
[1742449737445,0.0507625,133.45,133.44,26.32]
[1742449737846,0.0507625,133.45,133.43,18.38921365]
[1742449737847,0.0507625,133.45,133.42,26.41747607]
[1742449738041,0.0507625,133.45,133.42,33.91207607]
[1742449738850,0.0507625,133.45,133.43,10.89511365]
[1742449739351,0.0507625,133.45,133.43,18.38921365]
[1742449739841,0.0507625,133.45,133.44,7.4938]
[1742449740046,0.0507625,133.45,133.44,18.38891365]
[1742449743355,0.0507625,133.45,133.44,10.89511365]
[1742449743549,0.0507625,133.45,133.43,18.38931365]
[1742449743750,0.0507625,133.45,133.43,10.89511365]
[1742449743949,0.0507625,133.45,133.44,18.38891365]
[1742449746951,10.89511365,133.52,133.44,10.89511365]
[1742449747252,257.76247843,133.53,133.48,10.89511365]
[1742449747447,18.38471365,133.52,133.48,44.80631365]
[1742449748254,0.04740076,133.51,133.49,7.54687]
[1742449748451,0.04740076,133.51,133.49,10.95108365]
[1742449748755,0.04740076,133.51,133.5,10.89511365]
[1742449749149,0.04740076,133.51,133.5,18.38551365]
[1742449749555,10.44247843,133.53,133.5,10.89511365]
[1742449749758,10.44247843,133.53,133.52,10.89511365]
[1742449750456,78.98339667,133.57,133.52,10.89511365]
[1742449750755,7.53505823,133.56,133.52,10.89511365]
[1742449751055,0.04745823,133.56,133.53,0.04996051]
[1742449751952,0.04745823,133.56,133.54,26.46]
[1742449752157,10.94257188,133.56,133.53,0.04996051]
[1742449752357,7.4881,133.55,133.53,0.04996051]
[1742449754755,7.4881,133.55,133.53,10.94507416]
[1742449754957,0.04745823,133.56,133.53,10.94507416]
[1742449755460,7.4876,133.55,133.53,10.94507416]
[1742449755661,0.04745823,133.56,133.53,10.94507416]
[1742449756267,7.4882,133.54,133.53,10.94507416]
[1742449759068,7.4879,133.55,133.53,10.94507416]
[1742449759868,7.4882,133.54,133.53,10.94507416]
[1742449760070,7.4882,133.54,133.53,0.04996051]
[1742449764567,7.4879,133.55,133.53,0.04996051]
[1742449765169,7.4882,133.54,133.53,0.04996051]
[1742449768273,7.4878,133.55,133.53,0.04996051]
[1742449768570,10.94257188,133.56,133.53,0.04996051]
[1742449768770,7.4881,133.55,133.53,0.04996051]
[1742449768966,0.04745823,133.56,133.53,37.34507416]
[1742449769567,10.89511365,133.55,133.53,0.04996051]
[1742449770072,7.4882,133.54,133.53,0.04996051]
[1742449770569,10.89511365,133.55,133.53,0.04996051]
[1742449770570,18.38301365,133.55,133.53,0.04996051]
[1742449770973,0.04745823,133.56,133.53,0.04996051]
[1742449771172,0.04745823,133.56,133.53,10.94507416]
[1742449771373,0.04745823,133.56,133.53,0.04996051]
[1742449771674,10.94257188,133.56,133.53,0.04996051]
[1742449771876,7.4881,133.55,133.53,0.04996051]
[1742449772068,10.94257188,133.56,133.53,0.04996051]
[1742449772273,0.04745823,133.56,133.53,0.04996051]
[1742449772676,0.04745823,133.56,133.53,18.43377416]
[1742449773068,7.53455823,133.56,133.53,10.94507416]
[1742449773570,0.04745823,133.56,133.53,10.94507416]
[1742449773777,0.04745823,133.56,133.53,0.04996051]
[1742449773976,0.04745823,133.56,133.53,10.94507416]
[1742449774477,0.04745823,133.56,133.54,7.4882]
[1742449774876,0.04745823,133.56,133.53,10.94507416]
[1742449775072,0.04745823,133.56,133.55,18.38271365]
[1742449776266,0.04745823,133.56,133.55,10.89511365]
[1742449777177,0.04745823,133.56,133.55,18.38271365]
[1742449778774,258.01511365,133.63,133.55,37.45511365]
[1742449778977,284.57511365,133.63,133.57,10.89511365]
[1742449779272,258.01511365,133.63,133.57,10.89511365]
[1742449779479,284.57511365,133.63,133.57,10.89511365]
[1742449779878,0.05574119,133.61,133.59,7.53417327]
[1742449780176,0.05574119,133.61,133.59,0.04917327]
[1742449781076,10.95085484,133.61,133.59,0.04917327]
[1742449781878,7.4848,133.6,133.59,0.04917327]
[1742449782875,18.43535484,133.61,133.59,0.04917327]
[1742449783680,7.4848,133.6,133.59,0.04917327]
[1742449783881,18.37991365,133.6,133.59,0.04917327]
[1742449784279,37.43511365,133.6,133.53,37.43511365]
[1742449784579,10.89511365,133.57,133.53,10.89511365]
[1742449784772,44.92191365,133.57,133.53,18.38381365]
[1742449785581,0.05131217,133.56,133.54,0.04955441]
[1742449786680,0.05131217,133.56,133.54,18.43276806]
[1742449787181,0.05131217,133.56,133.54,10.94466806]
[1742449788877,7.53881217,133.56,133.54,10.94466806]
[1742449790077,7.53881217,133.56,133.54,0.04955441]
[1742449790875,7.4876,133.55,133.54,0.04955441]
[1742449793582,10.89511365,133.55,133.5,10.89511365]
[1742449793778,10.89511365,133.55,133.5,37.37511365]
[1742449793980,10.89511365,133.55,133.5,10.89511365]
[1742449794186,7.4894,133.52,133.49,44.88581365]
[1742449794784,7.54696759,133.52,133.49,44.93738113]
[1742449795388,0.05756759,133.52,133.5,7.4903]
[1742449796589,0.05756759,133.52,133.5,18.38551365]
[1742449797488,0.05756759,133.52,133.51,7.4899]
[1742449797990,0.05756759,133.52,133.51,18.38501365]
[1742449801583,0.05756759,133.52,133.5,18.38531365]
[1742449802993,0.05756759,133.52,133.51,7.4899]
[1742449803199,0.05756759,133.52,133.5,10.89511365]
[1742449803394,0.05756759,133.52,133.5,18.38501365]
[1742449803600,0.05756759,133.52,133.5,10.89511365]
[1742449804202,0.05756759,133.52,133.51,7.4899]
[1742449804897,0.05756759,133.52,133.51,18.38501365]
[1742449812106,10.95268124,133.52,133.49,0.05156748]
[1742449812502,7.4903,133.51,133.49,0.05156748]
[1742449812709,10.95268124,133.52,133.49,0.05156748]
[1742449812901,0.05756759,133.52,133.49,0.05156748]
[1742449813101,7.54716759,133.52,133.49,7.54236748]
[1742449813297,0.05756759,133.52,133.49,0.05156748]
[1742449813807,7.49,133.51,133.49,7.54256748]
[1742449814704,7.54706759,133.52,133.49,7.54256748]
[1742449816009,0.05756759,133.52,133.5,7.4904]
[1742449816209,0.05756759,133.52,133.5,10.89511365]
[1742449816804,0.05756759,133.52,133.51,7.4899]
[1742449818109,0.05756759,133.52,133.5,18.38531365]
[1742449818610,0.05756759,133.52,133.5,10.89511365]
[1742449819510,0.05756759,133.52,133.51,7.4899]
[1742449819711,0.05756759,133.52,133.5,10.89511365]
[1742449820013,0.05756759,133.52,133.49,10.94668113]
[1742449820811,10.95268124,133.52,133.49,0.05156748]
[1742449821110,7.49,133.51,133.49,7.54256748]
[1742449821312,26.43756759,133.52,133.49,7.54256748]
[1742449821813,33.92726759,133.52,133.49,7.54256748]
[1742449822608,7.4899,133.51,133.49,0.05156748]
[1742449823213,26.43756759,133.52,133.49,0.05156748]
[1742449823214,37.33268124,133.52,133.49,0.05156748]
[1742449823715,0.05756759,133.52,133.51,10.89511365]
[1742449823905,41.62828302,133.56,133.51,10.89511365]
[1742449824110,41.62828302,133.56,133.54,10.89511365]
[1742449824311,41.62828302,133.56,133.53,10.89511365]
[1742449824713,41.62828302,133.56,133.53,18.38351365]
[1742449825014,41.68030572,133.56,133.53,18.43462031]
[1742449825512,41.68030572,133.56,133.54,7.4881]
[1742449825715,41.68030572,133.56,133.53,10.94622031]
[1742449826016,49.16750572,133.56,133.53,10.94622031]
[1742449826617,0.0520227,133.56,133.53,18.43492031]
[1742449827719,0.0520227,133.56,133.54,7.4882]
[1742449828320,0.0520227,133.56,133.53,18.43472031]
[1742449828619,0.0520227,133.56,133.53,10.94622031]
[1742449829020,0.0520227,133.56,133.54,7.4881]
[1742449829425,0.0520227,133.56,133.55,7.4876]
[1742449832618,0.0520227,133.56,133.54,10.89511365]
[1742449832922,0.0520227,133.56,133.53,0.05110666]
[1742449833221,10.94713635,133.56,133.53,0.05110666]
[1742449833820,0.0520227,133.56,133.53,0.05110666]
[1742449835524,7.5394227,133.56,133.53,7.53940666]
[1742449836326,0.0520227,133.56,133.53,7.53940666]
[1742449839932,7.5391227,133.56,133.53,7.53940666]
[1742449840833,7.4877,133.55,133.53,0.05110666]
[1742449841033,37.59511365,133.55,133.53,0.05110666]
[1742449841434,7.4882,133.54,133.53,0.05110666]
[1742449843638,45.08301365,133.55,133.53,0.05110666]
[1742449845339,37.59511365,133.55,133.53,7.53980666]
[1742449845527,37.59511365,133.55,133.53,0.05110666]
[1742449845731,0.0520227,133.56,133.53,0.05110666]
[1742449847435,0.0520227,133.56,133.54,7.4879]
[1742449847640,0.0520227,133.56,133.53,0.05110666]
[1742449849039,0.0520227,133.56,133.54,10.89511365]
[1742449849337,0.0520227,133.56,133.55,10.89511365]
[1742449849737,0.0520227,133.56,133.55,18.38271365]
[1742449850741,0.0520227,133.56,133.55,7.4876]
[1742449850936,0.0520227,133.56,133.54,10.89511365]
[1742449851137,0.0520227,133.56,133.54,7.4879]
[1742449851736,0.0520227,133.56,133.53,17.06052031]
[1742449853551,0.0520227,133.56,133.55,7.4876]
[1742449855349,0.0520227,133.56,133.55,18.38271365]
[1742449856350,0.0520227,133.56,133.55,45.02271365]
[1742449856949,333.78809667,133.61,133.58,7.4857]
[1742449857350,326.30339667,133.61,133.58,7.4857]
[1742449858048,315.46568744,133.61,133.58,7.54098345]
[1742449858450,41.68568744,133.61,133.58,10.9503971]
[1742449858750,41.68568744,133.61,133.59,10.89511365]
[1742449859348,0.05740442,133.61,133.6,7.4848]
[1742449859853,0.05740442,133.61,133.59,10.89511365]
[1742449860154,0.05740442,133.61,133.59,7.4851]
[1742449860755,0.05740442,133.61,133.59,18.38021365]
[1742449863962,0.05740442,133.61,133.6,7.4848]
[1742449864262,0.05740442,133.61,133.59,10.89511365]
[1742449864463,0.05740442,133.61,133.59,18.38011365]
[1742449866063,0.05740442,133.61,133.6,7.4848]
[1742449871862,37.49511365,133.64,133.59,10.89511365]
[1742449871863,292.01671365,133.66,133.63,7.483]
[1742449872270,292.03671365,133.66,133.63,7.483]
[1742449872973,292.09060234,133.66,133.63,0.05412531]
[1742449873472,0.05388869,133.66,133.63,0.05412531]
[1742449873672,0.05388869,133.66,133.64,10.89511365]
[1742449874067,0.05388869,133.66,133.63,10.94923896]
[1742449874371,10.94900234,133.66,133.63,0.05412531]
[1742449874573,37.50900234,133.66,133.63,0.05412531]
[1742449874872,7.4824,133.65,133.63,0.05412531]
[1742449875063,37.50900234,133.66,133.63,0.05412531]
[1742449875969,7.4824,133.65,133.63,0.05412531]
[1742449877673,0.05388869,133.66,133.63,10.94923896]
[1742449877879,0.05388869,133.66,133.63,37.48923896]
[1742449878370,0.05388869,133.66,133.65,7.482]
[1742449880879,0.05388869,133.66,133.65,18.37711365]
[1742449882183,268.35759208,133.71,133.69,7.4797]
[1742449882376,257.46247843,133.71,133.69,7.4797]
[1742449883384,257.4987862,133.71,133.69,7.52774772]
[1742449883580,18.37431365,133.7,133.69,0.04804772]
[1742449883782,44.85431365,133.7,133.69,0.04804772]
[1742449889784,18.37431365,133.7,133.69,0.04804772]
[1742449890193,0.03630777,133.71,133.69,0.04804772]
[1742449890582,10.93142142,133.71,133.69,0.04804772]
[1742449890784,18.41042142,133.71,133.69,0.04804772]
[1742449891192,10.93142142,133.71,133.69,0.04804772]
[1742449891588,0.03630777,133.71,133.69,0.04804772]
[1742449893497,0.03630777,133.71,133.7,7.4792]
[1742449894199,21.33759208,133.76,133.73,7.4771]
[1742449894388,10.44247843,133.76,133.71,10.89511365]
[1742449894593,21.33759208,133.76,133.71,10.89511365]
[1742449895097,21.33759208,133.76,133.73,7.4773]
[1742449895300,21.33759208,133.76,133.71,10.89511365]
[1742449895598,21.33759208,133.76,133.73,0.05602712]
[1742449895792,10.89511365,133.76,133.73,0.05602712]
[1742449896194,18.37111365,133.76,133.73,0.05602712]
[1742449896589,10.89511365,133.76,133.73,0.05602712]
[1742449896795,18.37191365,133.75,133.73,0.05602712]
[1742449897401,18.37211365,133.74,133.73,0.05602712]
[1742449898505,37.37511365,133.76,133.73,0.05602712]
[1742449898697,10.89511365,133.76,133.73,0.05602712]
[1742449899097,18.37111365,133.76,133.73,0.05602712]
[1742449899296,7.476,133.76,133.73,0.05602712]
[1742449899497,37.35511365,133.77,133.73,0.05602712]
[1742449899703,44.83071365,133.77,133.73,7.53342712]
[1742449900097,44.83071365,133.77,133.73,0.05602712]
[1742449900405,7.476,133.76,133.73,0.05602712]
[1742449901906,7.4765,133.75,133.73,0.05602712]
[1742449902203,37.35511365,133.77,133.73,0.05602712]
[1742449902604,7.4765,133.75,133.73,0.05602712]
[1742449902997,7.4761,133.76,133.73,7.53352712]
[1742449903201,10.89511365,133.77,133.73,7.53352712]
[1742449904408,10.89511365,133.77,133.73,44.86864077]
[1742449904703,10.89511365,133.78,133.73,44.86864077]
[1742449904904,7.4758,133.77,133.73,44.86864077]
[1742449905404,7.476,133.76,133.73,44.86864077]
[1742449905800,7.476,133.76,133.73,26.49602712]
[1742449906303,7.476,133.76,133.73,37.39114077]
[1742449907107,7.476,133.76,133.73,44.86834077]
[1742449908108,7.4755,133.77,133.74,7.4769]
[1742449908311,10.89511365,133.78,133.73,37.39114077]
[1742449908514,15.12991365,133.8,133.75,10.89511365]
[1742449908702,41.58991365,133.8,133.75,18.37111365]
[1742449909007,7.4747,133.79,133.76,0.04776829]
[1742449909605,7.4748,133.78,133.76,0.04776829]
[1742449911305,7.4743,133.79,133.76,7.52326829]
[1742449911703,259.77171365,133.81,133.76,18.41838194]
[1742449911908,7.474,133.8,133.77,7.4752]
[1742449913508,7.474,133.8,133.76,44.85858194]
[1742449913708,7.4744,133.79,133.76,44.85858194]
[1742449914910,7.4739,133.8,133.76,44.85858194]
[1742449915304,7.4745,133.79,133.76,44.85858194]
[1742449916116,7.4738,133.8,133.77,7.4753]
[1742449916915,7.4738,133.8,133.76,44.85848194]
[1742449917615,7.4743,133.79,133.76,44.85848194]
[1742449918920,7.4749,133.78,133.76,26.48776829]
[1742449919117,10.89511365,133.78,133.76,26.48776829]
[1742449919318,18.37041365,133.77,133.76,0.04776829]
[1742449919516,10.89511365,133.77,133.66,10.89511365]
[1742449919716,10.89511365,133.71,133.66,10.89511365]
[1742449920022,10.89511365,133.68,133.63,10.89511365]
[1742449920515,18.37551365,133.68,133.62,26.54]
[1742449920719,0.0477683,133.67,133.64,0.0543492]
[1742449921022,0.0477683,133.67,133.64,7.5365492]
[1742449921518,0.0477683,133.67,133.64,0.0543492]
[1742449921712,0.0477683,133.67,133.64,10.94946285]
[1742449922020,10.94288195,133.67,133.64,0.0543492]
[1742449922616,10.89511365,133.66,133.64,0.0543492]
[1742449924922,18.42408195,133.67,133.64,0.0543492]
[1742449925425,18.42408195,133.67,133.64,7.5369492]
[1742449926123,0.0477683,133.67,133.64,7.5369492]
[1742449926320,0.0477683,133.67,133.64,10.94946285]
[1742449926520,0.0477683,133.67,133.65,10.89511365]
[1742449926721,0.0477683,133.67,133.66,7.4815]
[1742449927327,0.0477683,133.67,133.65,18.37691365]
[1742449927520,0.0477683,133.67,133.64,10.94946285]
[1742449927923,0.0477683,133.67,133.64,18.43166285]
[1742449928127,0.0477683,133.67,133.64,7.5365492]
[1742449930123,0.0477683,133.67,133.65,7.482]
[1742449930726,0.0477683,133.67,133.64,7.5367492]
[1742449932429,7.5287683,133.67,133.64,7.5367492]
[1742449932630,18.42388195,133.67,133.64,0.0543492]
[1742449932827,10.89511365,133.66,133.64,0.0543492]
[1742449933029,10.89511365,133.65,133.64,0.0543492]
[1742449933932,18.37711365,133.65,133.64,0.0543492]
[1742449934832,10.89511365,133.65,133.64,0.0543492]
[1742449935227,10.89511365,133.65,133.58,37.37511365]
[1742449935428,10.89511365,133.63,133.6,7.4846]
[1742449936230,37.37511365,133.64,133.6,7.4846]
[1742449936433,0.05410869,133.63,133.6,7.53462289]
[1742449936834,10.94922234,133.63,133.6,7.53462289]
[1742449937134,0.05410869,133.63,133.6,7.53462289]
[1742449937929,0.05410869,133.63,133.61,7.4842]